fUST/lending_fUST_20240119
["ID","MTS","AMOUNT","RATE_DAILY","PERIOD"]
[312095288,1705617040155,-1917.860919,0.00039797,2]
[312095289,1705617040164,-2949.983751,0.00039797,2]
[312095290,1705617040172,-152.230841,0.00039797,2]
[312095291,1705617040182,-284.90461025,0.000399,2]
[312095292,1705617040191,-5000.0,0.00039982,7]
[312095293,1705617040200,-4037.37988696,0.0003999,4]
[312095294,1705617040209,-154.9690062,0.00039998,4]
[312095295,1705617040250,-258.65098072,0.00039998,4]
[312095297,1705617040260,-154.9690062,0.00039998,4]
[312095298,1705617040272,-250.61808958,0.00039998,4]
[312095299,1705617040284,-2951.42901742,0.00039998,4]
[312095300,1705617040293,-5136.25940385,0.00039998,4]
[312095301,1705617040303,-154.9690062,0.00039998,4]
[312095302,1705617040312,-285.05276312,0.00039998,4]
[312095304,1705617040322,-594.07215949,0.00039998,4]
[312095306,1705617040331,-2076.58050402,0.00039998,4]
[312095308,1705617040339,-151.0,0.00039998,2]
[312095309,1705617040348,-151.0,0.00039999,2]
[312095311,1705617040357,-151.0,0.00039999,2]
[312095313,1705617040366,-1917.13306916,0.00039999,4]
[312095315,1705617040376,-2176.85941571,0.00039999,4]
[312095317,1705617040385,-161.69,0.00039999,2]
[312095319,1705617040396,-500.0,0.00039999,7]
[312095321,1705617040405,-500.0,0.00039999,7]
[312095323,1705617040414,-186.00070458,0.00039999,7]
[312095325,1705617040423,-500.0,0.00039999,7]
[312095327,1705617040432,-500.0,0.00039999,7]
[312095329,1705617040442,-170.93810809,0.00039999,7]
[312095331,1705617040451,-500.0,0.00039999,7]
[312095333,1705617040461,-500.0,0.00039999,7]
[312095335,1705617040470,-645.35870089,0.00039999,7]
[312095337,1705617040480,-543.30166901,0.00039999,7]
[312095339,1705617040490,-500.0,0.00039999,7]
[312095341,1705617040499,-500.0,0.00039999,7]
[312095343,1705617040509,-389.63565093,0.00039999,7]
[312095345,1705617040519,-500.0,0.0004,10]
[312095347,1705617040529,-154.9690062,0.0004,4]
[312095349,1705617040538,-1816.62824705,0.0004,30]
[312095351,1705617040548,-1599.63436256,0.0004,4]
[312095353,1705617040558,-223.0503472,0.0004,4]
[312095355,1705617040567,-1032.15532744,0.0004,4]
[312095357,1705617040577,-650.89335401,0.0004,4]
[312095359,1705617040586,-154.95351395,0.0004,4]
[312095361,1705617040595,-192.82732,0.0004,2]
[312095363,1705617040604,-1117.32490242,0.0004,60]
[312095365,1705617040614,-57780.99294627,0.0004,2]
[312095367,1705617040622,-1000.0,0.0004,40]
[312095369,1705617040632,-5000.0,0.0004,2]
[312095371,1705617040641,-289.99999618,0.0004,4]
[312095373,1705617040651,-15000.0,0.0004,30]
[312095375,1705617040660,-738.12683061,0.0004,2]
[312095377,1705617040669,-52607.05774887,0.0004,120]
[312095379,1705617040678,-3393.37760028,0.0004,120]
[312095381,1705617040687,-719.46157424,0.0004,2]
[312095383,1705617040696,-18893.38699722,0.0004,15]
[312095385,1705617040706,-301.91589292,0.0004,2]
[312095387,1705617040715,-2716.84535538,0.0004,2]
[312095389,1705617040724,-16207.55387816,0.0004,10]
[312095391,1705617040733,-168.22710666,0.0004,2]
[312095393,1705617040743,-151.0,0.0004,2]
[312095395,1705617040752,-151.0,0.0004,2]
[312095397,1705617040760,-2000.0,0.0004,32]
[312095399,1705617040771,-151.0,0.0004,2]
[312095401,1705617040781,-151.0,0.0004,2]
[312095403,1705617040790,-150.0,0.0004,11]
[312095405,1705617040798,-400.0,0.0004,30]
[312095407,1705617040807,-500.0,0.0004,3]
[312095409,1705617040817,-151.0,0.0004,2]
[312095411,1705617040826,-151.0,0.0004,2]
[312095413,1705617040835,-151.0,0.0004,2]
[312095415,1705617040845,-244.442505,0.0004,2]
[312095417,1705617040854,-2091.715366,0.0004,2]
[312095419,1705617040863,-2091.715366,0.0004,2]
[312095420,1705617040873,-2091.715366,0.0004,2]
[312095421,1705617040883,-2091.715366,0.0004,2]
[312095422,1705617040894,-151.0,0.0004,2]
[312095424,1705617040903,-2000.0,0.0004001,32]
[312095426,1705617040913,-2000.0,0.0004002,32]
[312095428,1705617040922,-2000.0,0.0004003,32]
[312095430,1705617040934,-2000.0,0.0004004,32]
[312095432,1705617040943,-2000.0,0.0004005,32]
[312095435,1705617040953,-2949.773287,0.0004006,32]
[312095437,1705617040964,-163.0,0.00040065,2]
[312095439,1705617040973,-202.711,0.00040065,2]
[312095440,1705617040982,-152.92806292,0.00040236,30]
[312095443,1705617040993,-161.21858013,0.000403,30]
[312095444,1705617041002,-5000.0,0.0004046,4]
[312095446,1705617041013,-365.51661901,0.0004046,7]
[312095449,1705617041027,-498.90019996,0.000405,30]
[312095450,1705617041038,-161.588,0.00040685,2]
[312095453,1705617041049,-17303.35519019,0.000407,120]
[312095455,1705617041060,-4292.22093547,0.00040778,2]
[312095457,1705617041070,-22160.70685661,0.00040778,2]
[312095459,1705617041082,-151.0,0.00040778,2]
[312095460,1705617041092,-2091.715366,0.00040778,2]
[312095462,1705617041101,-2091.715366,0.00040778,2]
[312095464,1705617041111,-155.0,0.0004083,2]
[312095466,1705617041121,-151.0,0.00040872,21]
[312095468,1705617041131,-1461.5831018,0.000409,2]
[312095470,1705617041140,-2199.288005,0.000409,3]
[312095472,1705617041150,-200.0,0.00040966,10]
[312095474,1705617041159,-151.0,0.00040968,21]
[312095483,1705617041238,-213.66068675,0.00040978,10]
[312095485,1705617041248,-213.66068675,0.00040986,10]
[312095487,1705617041257,-213.66068675,0.00040993,10]
[312095489,1705617041268,-266.666712,0.00040995,2]
[312095491,1705617041278,-151.0,0.00040995,2]
[312095493,1705617041288,-36867.64002557,0.00040995,5]
[312095551,1705617041852,-1633.20057288,0.00040995,5]
[312095554,1705617041861,-213.66068675,0.00040998,10]
[312095556,1705617041870,-3000.0,0.00041,120]
[312095559,1705617041880,-1000.0,0.00041,41]
[312095561,1705617041889,-2000.0,0.00041,34]
[312095564,1705617041900,-4607.0,0.00041,15]
[312095565,1705617041909,-2000.0,0.0004101,34]
[312095567,1705617041919,-400.0,0.00041014,30]
[312095569,1705617041928,-2126.637763,0.0004102,35]
[312095571,1705617041938,-151.0,0.00041063,21]
[312095573,1705617041947,-350.0,0.00041075,30]
[312095575,1705617041957,-500.0,0.00041095,30]
[312095578,1705617041966,-500.0,0.00041095,30]
[312095580,1705617041976,-500.0,0.00041095,30]
[312095582,1705617041986,-500.0,0.00041095,30]
[312095583,1705617041995,-500.0,0.00041095,30]
[312095585,1705617042005,-500.0,0.00041095,7]
[312095588,1705617042014,-500.0,0.00041095,30]
[312095590,1705617042026,-500.0,0.00041095,30]
[312095591,1705617042036,-500.0,0.00041095,30]
[312095593,1705617042046,-950.0,0.00041095,2]
[312095595,1705617042056,-500.0,0.00041095,30]
[312095598,1705617042067,-500.0,0.00041095,30]
[312095600,1705617042077,-500.0,0.00041095,30]
[312095601,1705617042087,-500.0,0.00041095,30]
[312095604,1705617042100,-500.0,0.00041095,30]
[312095605,1705617042110,-503.61570195,0.00041095,30]
[312095607,1705617042119,-500.0,0.00041095,7]
[312095610,1705617042129,-500.0,0.00041095,30]
[312095611,1705617042138,-500.0,0.00041095,30]
[312095613,1705617042147,-500.0,0.00041095,30]
[312095616,1705617042156,-384.78079638,0.00041095,30]
[312095617,1705617042165,-502.96290202,0.00041095,30]
[312095619,1705617042176,-500.0,0.00041095,30]
[312095622,1705617042185,-595.89,0.00041095,30]
[312095623,1705617042195,-500.0,0.00041095,30]
[312095625,1705617042204,-500.0,0.00041095,30]
[312095627,1705617042214,-506.54726453,0.00041095,30]
[312095630,1705617042224,-605.57316236,0.00041095,30]
[312095631,1705617042233,-500.0,0.00041095,30]
[312095633,1705617042242,-500.0,0.00041095,30]
[312095636,1705617042251,-500.0,0.00041095,30]
[312095637,1705617042260,-500.0,0.00041095,30]
[312095640,1705617042273,-500.0,0.00041095,30]
[312095642,1705617042284,-500.0,0.00041095,30]
[312095644,1705617042293,-500.0,0.00041095,30]
[312095646,1705617042302,-500.0,0.00041095,30]
[312095648,1705617042311,-529.44108688,0.00041095,30]
[312095650,1705617042320,-500.0,0.00041095,30]
[312095652,1705617042329,-500.0,0.00041095,30]
[312095653,1705617042339,-500.0,0.00041095,30]
[312095655,1705617042348,-500.63027978,0.00041095,30]
[312095657,1705617042358,-694.83,0.00041095,30]
[312095659,1705617042368,-500.0,0.00041095,30]
[312095661,1705617042377,-521.6859121,0.00041095,30]
[312095663,1705617042386,-500.0,0.00041095,30]
[312095666,1705617042397,-580.06582805,0.00041095,30]
[312095668,1705617042405,-500.0,0.00041095,30]
[312095670,1705617042415,-500.0,0.00041095,30]
[312095672,1705617042425,-500.0,0.00041095,30]
[312095673,1705617042434,-500.0,0.00041095,30]
[312095675,1705617042443,-500.0,0.00041095,30]
[312095678,1705617042453,-282.28640194,0.00041095,30]
[312095679,1705617042462,-500.0,0.00041095,30]
[312095680,1705617042472,-271.5670683,0.00041095,30]
[312095681,1705617042481,-500.0,0.00041095,30]
[312095683,1705617042490,-500.0,0.00041095,30]
[312095685,1705617042499,-507.70691761,0.00041095,30]
[312095687,1705617042509,-500.0,0.00041095,30]
[312095689,1705617042521,-500.0,0.00041095,14]
[312095690,1705617042530,-500.0,0.00041095,30]
[312095692,1705617042539,-500.0,0.00041095,30]
[312095694,1705617042549,-500.0,0.00041095,30]
[312095696,1705617042558,-500.0,0.00041095,30]
[312095698,1705617042567,-500.0,0.00041095,30]
[312095701,1705617042577,-153.2722078,0.00041095,30]
[312095710,1705617042658,-346.7277922,0.00041095,30]
[312095712,1705617042667,-297.52078224,0.00041095,30]
[312095717,1705617042694,-202.47921776,0.00041095,30]
[312095720,1705617042703,-297.52078224,0.00041095,30]
[312095796,1705617469876,-154.8915759,0.00030005,5]
[312095797,1705617469904,-161.588004,0.00030137,2]
[312095798,1705617469931,-154.09292753,0.00031225,7]
[312095799,1705617469960,-174.42749257,0.00032206,2]
[312096217,1705618148149,-154.87609912,0.00029952,4]
[312096218,1705618148170,-154.11197625,0.00029953,2]
[312096219,1705618148190,-161.588,0.00030137,2]
[312096220,1705618148213,-154.11197625,0.0003025,7]
[312096221,1705618148233,-154.11197625,0.00030718,7]
[312096222,1705618148253,-6661.5293774,0.00031161,4]
[312096223,1705618148274,-451.17270566,0.00031162,2]
[312096224,1705618149106,-890.19731234,0.00031162,2]
[312096225,1705618149127,-160.63126229,0.00031491,7]
[312096226,1705618149146,-154.87609912,0.00032,4]
[312096227,1705618149166,-265.0,0.00032,15]
[312096228,1705618149190,-2834.1291661,0.00032206,2]
[312096229,1705618149210,-5154.7119315,0.00032206,4]
[312096230,1705618149232,-333.19296413,0.00032206,2]
[312096231,1705618149251,-154.11197625,0.00032534,7]
[312096232,1705618149271,-171.0,0.00033,2]
[312096233,1705618149295,-1756.99450198,0.00033835,6]
[312096243,1705618161290,-2106.1679698,0.00033835,6]
[312096244,1705618161312,-11734.72788054,0.00033842,5]
[312096245,1705618161334,-13305.21635245,0.00033843,5]
[312096246,1705618161354,-4224.50415141,0.00033947,4]
[312096247,1705618161373,-74.12332089,0.00033947,4]
[312096248,1705618165091,-3919.49022185,0.00032206,4]
[312096249,1705618165111,-252.16105427,0.00033947,4]
[312096250,1705618165129,-155.68066684,0.00033947,2]
[312096251,1705618165972,154.87609912,0.00034198,5]
[312096253,1705618170827,333.19296413,0.00032206,2]
[312096267,1705618190776,154.87609912,0.00034198,5]
[312096270,1705618194831,333.19296413,0.00032206,2]
[312096274,1705618202833,679.697913,0.00033,3]
[312096280,1705618207981,154.87609912,0.00034198,5]
[312096286,1705618214822,392.33738973,0.00032206,2]
[312096291,1705618229995,154.87609912,0.00034198,5]
[312096354,1705618233642,-152.92781955,0.00034433,7]
[312096356,1705618233651,-591.69239792,0.00035,2]
[312096357,1705618233660,-681.00189141,0.00035,4]
[312096368,1705618237975,1107.08756659,0.00033835,5]
[312096394,1705618238470,-1403.33881408,0.00035,4]
[312096396,1705618238479,-384.94331449,0.00035,15]
[312096398,1705618238491,-630.12208241,0.00035,15]
[312096403,1705618238529,-704.34602267,0.00035,15]
[312096405,1705618238538,-333.00867696,0.00035,4]
[312096407,1705618238547,-603.271881,0.00035616,120]
[312096409,1705618238556,-154.11197625,0.00035665,7]
[312096411,1705618238565,-152.92781955,0.00035781,7]
[312096413,1705618238574,-161.588,0.0003589,2]
[312096415,1705618238583,-3253.50323416,0.00036098,4]
[312096417,1705618238592,-148.86740768,0.00037,2]
[312096419,1705618238604,-6.13259232,0.00037,2]
[312096421,1705618238613,-233.68145571,0.00037238,4]
[312096423,1705618238624,-250.0,0.0003772,7]
[312096425,1705618238633,-17501.80123901,0.000379,2]
[312096427,1705618238644,-1685.26908813,0.000379,2]
[312096429,1705618238653,-227.9236882,0.000379,2]
[312096431,1705618238663,-620.442918,0.00037902,2]
[312096433,1705618238672,-383.572184,0.00037902,2]
[312096435,1705618238681,-197.354719,0.00037902,2]
[312096437,1705618238689,-152.230843,0.00037902,2]
[312096439,1705618238699,-487.85206379,0.0003797,30]
[312096442,1705618238711,-19.14793621,0.0003797,30]
[312096443,1705618238721,-507.0,0.0003798,30]
[312096445,1705618238730,-2761.3,0.00037988,3]
[312096447,1705618238741,-3313.57,0.00037989,3]
[312096450,1705618238751,-3976.28,0.0003799,3]
[312096452,1705618238760,-507.0,0.0003799,30]
[312096453,1705618238769,-709.42147636,0.00037998,4]
[312096455,1705618238778,-4809.33485352,0.00037998,4]
[312096457,1705618238788,-1057.77833867,0.00037998,4]
[312096460,1705618238797,-1917.13306916,0.00037998,4]
[312096461,1705618238809,-2176.85941571,0.00037998,4]
[312096464,1705618238818,-258.65098072,0.00037998,4]
[312096466,1705618238828,-250.61808958,0.00037998,4]
[312096467,1705618238837,-285.05276312,0.00037998,4]
[312096470,1705618238847,-154.9690062,0.00037998,4]
[312096471,1705618238857,-594.07215949,0.00037998,4]
[312096474,1705618238867,-154.9690062,0.00037998,4]
[312096476,1705618238877,-2951.42901742,0.00037998,4]
[312096478,1705618238886,-2076.58050402,0.00037998,4]
[312096479,1705618238895,-154.9690062,0.00037998,4]
[312096482,1705618238905,-5136.25940385,0.00037998,4]
[312096483,1705618238914,-2706.2756614,0.00037998,5]
[312096485,1705618238924,-688.53642166,0.00037998,4]
[312096487,1705618238934,-154.9690062,0.00037998,4]
[312096489,1705618238943,-500.0,0.00037999,2]
[312096491,1705618238952,-500.0,0.00037999,2]
[312096494,1705618238962,-518.25066983,0.00037999,2]
[312096495,1705618238970,-583.02363182,0.00037999,2]
[312096497,1705618238979,-500.0,0.00037999,2]
[312096499,1705618238988,-500.0,0.00037999,2]
[312096501,1705618238997,-609.9997639,0.00037999,2]
[312096503,1705618239007,-256.06221171,0.00038,3]
[312096505,1705618239016,-285189.53034381,0.00038,4]
[312096507,1705618239025,-3184.89020531,0.00038,7]
[312096509,1705618239034,-154.87609912,0.00038,2]
[312096511,1705618239043,-1481.54426108,0.00038,120]
[312096513,1705618239052,-152.92781955,0.00038106,7]
[312096515,1705618239061,-154.11197625,0.0003834,7]
[312096517,1705618239071,-155.0,0.0003837,2]
[312096519,1705618239080,-620.442918,0.00038376,2]
[312096521,1705618239089,-383.572184,0.00038376,2]
[312096523,1705618239098,-197.354719,0.00038376,2]
[312096525,1705618239107,-154.11197625,0.00038417,7]
[312096527,1705618239117,-2137.88596785,0.000385,4]
[312096529,1705618239127,-974.38873453,0.000386,2]
[312096531,1705618239137,-5000.0,0.00038793,2]
[312096533,1705618239147,-620.442918,0.0003885,2]
[312096535,1705618239156,-383.572184,0.0003885,2]
[312096538,1705618239169,-197.354719,0.0003885,2]
[312096540,1705618239181,-227.9236882,0.00038879,2]
[312096543,1705618239194,-155.70431015,0.0003899,4]
[312096545,1705618239207,-223.0503472,0.0003899,4]
[312096547,1705618239218,-1032.15532744,0.0003899,4]
[312096550,1705618239229,-615.51661901,0.0003909,7]
[312096552,1705618239244,-152.92781957,0.00039206,7]
[312096554,1705618239256,-620.442918,0.00039324,2]
[312096557,1705618239267,-383.572184,0.00039324,2]
[312096559,1705618239281,-197.354719,0.00039324,2]
[312096562,1705618239294,-154.11197625,0.00039531,7]
[312096564,1705618239305,-2580.86,0.00039616,2]
[312096566,1705618239318,-4999.98,0.00039624,2]
[312096568,1705618239329,-155.0,0.0003974,2]
[312096571,1705618239339,-620.442918,0.00039797,2]
[312096573,1705618239350,-383.572184,0.00039797,2]
[312096575,1705618239362,-197.354719,0.00039797,2]
[312096577,1705618239373,-434.00164402,0.00039799,4]
[312096580,1705618239385,-500.0,0.00039799,4]
[312096582,1705618239396,-500.0,0.00039799,4]
[312096584,1705618239408,-500.0,0.00039799,4]
[312096587,1705618239420,-294.59443179,0.00039799,4]
[312096589,1705618239432,-500.0,0.00039799,4]
[312096591,1705618239441,-500.0,0.00039799,4]
[312096593,1705618239451,-394.58414412,0.00039799,4]
[312096595,1705618239465,-500.0,0.00039799,4]
[312096598,1705618239476,-365.85700207,0.00039799,4]
[312096600,1705618239488,-500.0,0.00039799,4]
[312096602,1705618239500,-500.0,0.00039799,4]
[312096605,1705618239511,-500.0,0.00039799,4]
[312096607,1705618239522,-272.95556002,0.00039799,4]
[312096609,1705618239533,-500.0,0.00039799,4]
[312096611,1705618239545,-500.0,0.00039799,4]
[312096614,1705618239557,-500.0,0.00039799,4]
[312096616,1705618239569,-500.0,0.00039799,4]
[312096619,1705618239582,-500.0,0.00039799,4]
[312096621,1705618239594,-500.0,0.00039799,4]
[312096623,1705618239606,-360.47826785,0.00039799,4]
[312096625,1705618239619,-500.0,0.00039799,4]
[312096628,1705618239629,-500.0,0.00039799,4]
[312096630,1705618239639,-500.0,0.00039799,4]
[312096632,1705618239649,-500.0,0.00039799,4]
[312096634,1705618239659,-500.0,0.00039799,4]
[312096636,1705618239672,-187.26772386,0.00039799,7]
[312096639,1705618239683,-310.9504019,0.00039799,7]
[312096641,1705618239693,-500.0,0.00039799,7]
[312096643,1705618239705,-500.0,0.00039799,7]
[312096645,1705618239716,-500.0,0.00039799,7]
[312096647,1705618239727,-500.0,0.00039799,7]
[312096650,1705618239738,-207.49982292,0.00039799,7]
[312096652,1705618239748,-471.33694125,0.00039799,2]
[312096654,1705618239758,-227.9236882,0.00039859,2]
[312096656,1705618239769,-156.876,0.00039897,2]
[312096658,1705618239780,-163.0,0.00039897,2]
[312096660,1705618239790,-202.855,0.00039897,2]
[312096662,1705618239802,-4037.37988696,0.0003999,4]
[312096665,1705618239812,-479.3378713,0.0004,10]
[312096667,1705618239823,-154.8915759,0.0004,4]
[312096669,1705618239834,-238.18227951,0.0004,4]
[312096671,1705618239845,-1279.70749005,0.0004,4]
[312096673,1705618239855,-500.0,0.0004,10]
[312096675,1705618239865,-1816.62824705,0.0004,30]
[312096677,1705618239876,-192.82732,0.0004,2]
[312096680,1705618239887,-1117.32490242,0.0004,60]
[312096682,1705618239897,-289.99999618,0.0004,4]
[312096684,1705618239908,-15000.0,0.0004,30]
[312096686,1705618239918,-5000.0,0.0004,21]
[312096688,1705618239929,-500.0,0.0004,3]
[312096690,1705618239940,-600.0,0.0004,30]
[312096693,1705618239950,-5000.0,0.00040023,7]
[312096695,1705618239961,-500.0,0.0004037,7]
[312096697,1705618239971,-500.0,0.0004037,7]
[312096699,1705618239981,-186.00070458,0.0004037,7]
[312096701,1705618239992,-204.71667001,0.0004037,7]
[312096704,1705618240003,-170.93810809,0.0004037,7]
[312096706,1705618240014,-500.0,0.0004037,7]
[312096708,1705618240025,-500.0,0.0004037,7]
[312096710,1705618240036,-500.0,0.0004037,7]
[312096712,1705618240049,-500.0,0.0004037,7]
[312096714,1705618240060,-500.0,0.0004037,7]
[312096717,1705618240071,-500.0,0.0004037,7]
[312096719,1705618240081,-645.35870089,0.0004037,7]
[312096721,1705618240092,-500.0,0.0004037,7]
[312096723,1705618240103,-500.0,0.0004037,7]
[312096725,1705618240115,-500.0,0.0004037,7]
[312096727,1705618240126,-500.0,0.0004037,7]
[312096730,1705618240137,-500.0,0.0004037,7]
[312096732,1705618240150,-399.39275155,0.0004037,7]
[312096748,1705618240294,-500.0,0.0004037,7]
[312096751,1705618240311,-500.0,0.0004037,7]
[312096753,1705618240320,-26452.92779208,0.00040371,2]
[312096755,1705618240330,-227.9236882,0.00040838,2]
[312096757,1705618240340,-2199.288005,0.000409,3]
[312096759,1705618240351,-210.24551506,0.00040974,10]
[312096762,1705618240360,-210.24551506,0.00040978,10]
[312096764,1705618240371,-210.24551506,0.00040978,10]
[312096765,1705618240381,-210.24551506,0.00040992,10]
[312096768,1705618240390,-38500.84059845,0.00040995,5]
[312096770,1705618240400,-18360.01618873,0.00041,2]
[312096772,1705618240409,-150.0,0.00041,12]
[312096773,1705618240418,-2000.0,0.00041,34]
[312096775,1705618240427,-500.0,0.00041,3]
[312096778,1705618240436,-2000.0,0.00041,34]
[312096780,1705618240446,-2303.0,0.00041,15]
[312096781,1705618240455,-184.0,0.00041,14]
[312096783,1705618240464,-2000.0,0.0004101,34]
[312096785,1705618240474,-2000.0,0.0004101,34]
[312096787,1705618240483,-600.0,0.00041014,30]
[312096789,1705618240494,-2000.0,0.0004102,35]
[312096792,1705618240503,-2126.637763,0.0004102,35]
[312096793,1705618240512,-2823.135524,0.0004103,35]
[312096794,1705618240521,-439.88265291,0.00041088,30]
[312096795,1705618240530,-6760.97413379,0.00041093,4]
[312096796,1705618240539,-155.01545199,0.00041093,4]
[312096798,1705618240548,-500.0,0.00041095,30]
[312096800,1705618240557,-650.89335401,0.00041095,4]
[312096801,1705618240566,-500.0,0.00041095,30]
[312096802,1705618240575,-500.0,0.00041095,30]
[312096803,1705618240584,-501.73625022,0.00041095,30]
[312096804,1705618240593,-234.32296402,0.00041095,30]
[312096805,1705618240602,-514.11614301,0.00041095,30]
[312096806,1705618240611,-500.0,0.00041095,30]
[312096807,1705618240620,-500.0,0.00041095,30]
[312096808,1705618240629,-782.11774144,0.00041095,4]
[312096809,1705618240638,-500.0,0.00041095,7]
[312096810,1705618240647,-500.0,0.00041095,30]
[312096811,1705618240656,-500.0,0.00041095,30]
[312096812,1705618240665,-500.0,0.00041095,30]
[312096813,1705618240674,-500.0,0.00041095,30]
[312096815,1705618240683,-500.0,0.00041095,30]
[312096817,1705618240692,-500.0,0.00041095,30]
[312096819,1705618240701,-500.0,0.00041095,30]
[312096821,1705618240712,-620.26741538,0.00041095,4]
[312096823,1705618240721,-500.0,0.00041095,30]
[312096825,1705618240730,-502.79057372,0.00041095,30]
[312096827,1705618240738,-500.0,0.00041095,30]
[312096829,1705618240747,-426.66271985,0.00041095,30]
[312096831,1705618240756,-500.0,0.00041095,30]
[312096833,1705618240765,-500.0,0.00041095,30]
[312096835,1705618240774,-500.0,0.00041095,30]
[312096837,1705618240783,-500.0,0.00041095,30]
[312096839,1705618240793,-500.0,0.00041095,30]
[312096841,1705618240802,-500.0,0.00041095,30]
[312096843,1705618240811,-503.97861096,0.00041095,30]
[312096845,1705618240820,-500.0,0.00041095,30]
[312096847,1705618240829,-500.0,0.00041095,30]
[312096849,1705618240838,-500.0,0.00041095,30]
[312096851,1705618240847,-500.0,0.00041095,30]
[312096853,1705618240856,-512.67628657,0.00041095,30]
[312096855,1705618240866,-500.0,0.00041095,30]
[312096857,1705618240876,-150.0,0.00041095,30]
[312096859,1705618240885,-201.65120246,0.00041095,30]
[312096861,1705618240894,-500.0,0.00041095,30]
[312096863,1705618240903,-500.0,0.00041095,30]
[312096865,1705618240912,-500.0,0.00041095,30]
[312096867,1705618240922,-500.0,0.00041095,30]
[312096869,1705618240931,-500.0,0.00041095,30]
[312096871,1705618240940,-500.0,0.00041095,30]
[312096873,1705618240949,-500.0,0.00041095,30]
[312096875,1705618240958,-500.0,0.00041095,30]
[312096877,1705618240967,-500.0,0.00041095,30]
[312096879,1705618240976,-500.0,0.00041095,30]
[312096881,1705618240985,-500.0,0.00041095,30]
[312096883,1705618240994,-500.0,0.00041095,30]
[312096885,1705618241003,-498.48161421,0.00041095,30]
[312096887,1705618241012,-500.0,0.00041095,30]
[312096889,1705618241021,-502.77780565,0.00041095,30]
[312096891,1705618241030,-500.0,0.00041095,30]
[312096893,1705618241039,-500.0,0.00041095,30]
[312096895,1705618241048,-599.2813958,0.00041095,30]
[312096897,1705618241057,-500.0,0.00041095,30]
[312096899,1705618241066,-500.0,0.00041095,30]
[312096901,1705618241075,-500.0,0.00041095,30]
[312096903,1705618241084,-500.0,0.00041095,30]
[312096905,1705618241093,-332.77454815,0.00041095,30]
[312096907,1705618241101,-500.0,0.00041095,30]
[312096909,1705618241111,-500.0,0.00041095,7]
[312096911,1705618241120,-500.0,0.00041095,30]
[312096913,1705618241129,-500.0,0.00041095,30]
[312096915,1705618241138,-500.0,0.00041095,30]
[312096917,1705618241147,-500.0,0.00041095,30]
[312096919,1705618241156,-500.0,0.00041095,30]
[312096921,1705618241165,-500.0,0.00041095,2]
[312096923,1705618241175,-500.89027752,0.00041095,30]
[312096925,1705618241184,-500.0,0.00041095,30]
[312096927,1705618241193,-508.99646592,0.00041095,30]
[312096929,1705618241202,-501.22965993,0.00041095,30]
[312096931,1705618241212,-233.13048792,0.00041095,30]
[312096933,1705618241223,-500.0,0.00041095,30]
[312096935,1705618241232,-1000.0,0.00041095,2]
[312096937,1705618241243,-500.0,0.00041095,30]
[312096939,1705618241253,-500.0,0.00041095,30]
[312096941,1705618241263,-252.25483687,0.00041095,30]
[312096943,1705618241272,-500.0,0.00041095,30]
[312096945,1705618241282,-500.0,0.00041095,30]
[312096947,1705618241291,-500.0,0.00041095,30]
[312096949,1705618241301,-500.0,0.00041095,30]
[312096951,1705618241339,-574.10867048,0.00041095,30]
[312096953,1705618241348,-500.0,0.00041095,30]
[312096955,1705618241358,-500.0,0.00041095,30]
[312096957,1705618241367,-1125.7,0.00041095,30]